bitfinex-derivatives/quotes_SOLF0:USTF0_20241025
["timestamp","ask_amount","ask_price","bid_price","bid_amount"]
[1729882993557,2.953,169.57,169.53,2.9534]
[1729882993958,1.2533,169.61,169.53,2.9534]
[1729882993959,1.2533,169.61,169.53,7.66]
[1729882994260,2.9527,169.58,169.55,2.9532]
[1729882994658,2.9525,169.6,169.56,2.9529]
[1729882994962,1.2533,169.61,169.53,7.66]
[1729882995161,2.9534,169.54,169.53,7.66]
[1729882995362,21.652727,169.61,169.53,7.66]
[1729882995658,2.9533,169.55,169.53,7.66]
[1729882996253,1.3198,169.62,169.56,2.953]
[1729882996458,1.3198,169.62,169.53,28.059427]
[1729882996653,1.2045,169.65,169.56,20.399427]
[1729882996866,2.9518,169.64,169.6,2.9523]
[1729882997465,2.952,169.63,169.56,20.399427]
[1729882997665,1.2045,169.65,169.53,28.059427]
[1729882997870,21.618027,169.71,169.57,20.399427]
[1729882998166,1.2045,169.7,169.62,2.9519]
[1729882998559,1.2045,169.7,169.61,7.66]
[1729882998761,1.2045,169.7,169.64,2.9515]
[1729882999265,2.9509,169.69,169.64,2.9515]
[1729882999675,2.951,169.68,169.64,2.9515]
[1729883000556,2.9513,169.66,169.62,2.9518]
[1729883000768,1.2045,169.7,169.61,7.66]
[1729883001066,2.9514,169.66,169.62,2.952]
[1729883002056,2.9516,169.65,169.61,10.6121]
[1729883002370,20.399427,169.65,169.56,7.66]
[1729883002564,2.952,169.62,169.56,7.66]
[1729883002770,1.2824,169.64,169.56,7.66]
[1729883003470,2.9524,169.6,169.56,10.613]
[1729883003671,20.399427,169.63,169.5,20.399427]
[1729883003971,20.399427,169.63,169.53,7.66]
[1729883004165,1.2519,169.62,169.53,7.66]
[1729883004361,2.5627,169.62,169.53,7.66]
[1729883004670,2.9532,169.56,169.53,7.66]
[1729883004863,20.399427,169.6,169.53,7.66]
[1729883005060,20.399427,169.6,169.5,7.66]
[1729883005263,2.9533,169.55,169.5,7.66]
[1729883006269,2.9533,169.55,169.51,2.9539]
[1729883006970,2.9533,169.55,169.51,10.6139]
[1729883007168,20.399427,169.6,169.51,7.66]
[1729883007469,2.9528,169.58,169.51,7.66]
[1729883007863,2.5627,169.62,169.51,7.66]
[1729883008063,2.9522,169.61,169.51,7.66]
[1729883008471,2.9522,169.61,169.56,2.9529]
[1729883008765,2.9522,169.61,169.51,7.66]
[1729883008766,1.2519,169.62,169.53,20.399427]
[1729883008967,2.9518,169.63,169.58,2.9525]
[1729883009268,2.9518,169.63,169.53,20.399427]
[1729883009667,1.2824,169.64,169.51,7.66]
[1729883009972,20.399427,169.6,169.51,7.66]
[1729883010193,2.9538,169.52,169.48,2.9544]
[1729883010381,2.9538,169.52,169.48,10.6144]
[1729883010596,1.2261,169.56,169.48,7.66]
[1729883010803,2.4522,169.56,169.48,7.66]
[1729883010975,2.9537,169.53,169.48,10.6144]
[1729883011770,2.9537,169.53,169.48,7.66]
[1729883011973,5.4053,169.56,169.48,7.66]
[1729883012181,1.2261,169.56,169.48,7.66]
[1729883012499,2.9529,169.57,169.53,2.9535]
[1729883012671,1.2443,169.59,169.48,7.66]
[1729883013073,2.9535,169.54,169.49,2.9542]
[1729883013277,1.2443,169.59,169.48,7.66]
[1729883013578,2.9533,169.55,169.51,2.9538]
[1729883013874,2.9533,169.55,169.48,7.66]
[1729883014297,1.2443,169.59,169.51,2.9537]
[1729883014485,1.2443,169.59,169.48,7.66]
[1729883014486,2.9531,169.56,169.48,7.66]
[1729883015077,2.9531,169.56,169.51,2.9538]
[1729883015775,2.9531,169.56,169.48,7.66]
[1729883015776,2.9531,169.56,169.52,2.9535]
[1729883015971,1.2443,169.59,169.48,7.66]
[1729883016164,2.5902,169.61,169.48,7.66]
[1729883016165,2.5902,169.61,169.53,2.9535]
[1729883016376,2.5902,169.61,169.5,20.399427]
[1729883017069,2.9521,169.62,169.52,20.399427]
[1729883017274,22.889527,169.65,169.52,20.399427]
[1729883017575,130.24812321,169.77,169.52,20.399427]
[1729883017772,130.24812321,169.77,169.55,20.399427]
[1729883017773,20.399427,169.71,169.55,20.399427]
[1729883017981,20.399427,169.71,169.56,7.64]
[1729883018179,2.9512,169.67,169.6,2.9522]
[1729883018477,20.399427,169.71,169.6,2.9522]
[1729883018877,2.9511,169.68,169.64,2.9516]
[1729883019074,2.5854,169.72,169.62,7.64]
[1729883020081,2.9508,169.69,169.64,2.9516]
[1729883020583,2.9511,169.68,169.63,2.9517]
[1729883020784,22.984827,169.72,169.62,7.64]
[1729883021092,20.399427,169.69,169.62,7.64]
[1729883021279,2.9518,169.64,169.62,7.64]
[1729883021796,22.984827,169.72,169.62,7.64]
[1729883022184,2.9506,169.7,169.65,2.9515]
[1729883022586,2.5854,169.72,169.65,2.9515]
[1729883022788,2.9509,169.69,169.64,2.9516]
[1729883023495,2.9506,169.7,169.65,2.9513]
[1729883023793,2.9506,169.7,169.62,7.64]
[1729883024595,20.399427,169.77,169.62,7.64]
[1729883024892,22.844027,169.8,169.67,20.399427]
[1729883025120,22.844027,169.8,169.69,2.9507]
[1729883025121,2.95,169.74,169.69,2.9507]
[1729883025700,2.9505,169.71,169.68,7.64]
[1729883026088,2.9504,169.72,169.68,7.64]
[1729883027790,2.9505,169.71,169.67,2.951]
[1729883028094,20.399427,169.78,169.67,2.951]
[1729883028095,20.399427,169.78,169.67,7.64]
[1729883028293,2.9501,169.73,169.67,7.64]
[1729883028489,20.399427,169.75,169.67,7.64]
[1729883028901,2.9509,169.69,169.67,7.64]
[1729883029090,20.399427,169.72,169.58,20.399427]
[1729883029298,2.5312,169.71,169.63,2.9517]
[1729883029798,2.5312,169.71,169.59,7.64]
[1729883029999,2.951,169.68,169.63,2.9517]
[1729883030806,2.9506,169.7,169.64,2.9516]
[1729883031096,2.5312,169.71,169.65,7.64]
[1729883031999,20.399427,169.69,169.56,20.399427]
[1729883032198,20.399427,169.69,169.57,7.64]
[1729883032405,2.9518,169.64,169.59,2.9523]
[1729883033104,2.9518,169.64,169.57,7.64]
[1729883033105,20.399427,169.69,169.57,7.64]
[1729883033695,2.9515,169.65,169.61,2.952]
[1729883034610,20.399427,169.69,169.57,7.64]
[1729883035806,20.399427,169.69,169.56,20.399427]
[1729883036103,20.399427,169.64,169.5,20.399427]
[1729883036304,20.399427,169.61,169.51,7.64]
[1729883036699,2.9531,169.56,169.52,2.9536]
[1729883036998,20.399427,169.59,169.49,7.64]
[1729883037201,20.399427,169.59,169.5,2.9539]
[1729883037509,20.399427,169.59,169.49,7.64]
[1729883038008,20.399427,169.61,169.49,7.64]
[1729883038306,2.9527,169.58,169.53,2.9534]
[1729883038500,2.9527,169.58,169.49,7.64]
[1729883039706,20.399427,169.59,169.49,7.64]
[1729883040124,20.399427,169.61,169.49,7.64]
[1729883040311,20.399427,169.61,169.5,20.399427]
[1729883040501,20.399427,169.61,169.49,7.64]
[1729883040904,2.9532,169.56,169.51,2.9539]
[1729883041104,20.399427,169.58,169.45,84.099427]
[1729883041308,1.2874,169.62,169.45,71.34]
[1729883041309,20.399427,169.55,169.45,71.34]
[1729883041509,2.9539,169.51,169.47,2.9545]
[1729883042104,5.3952,169.54,169.49,2.9541]
[1729883042508,2.4417,169.54,169.52,2.9537]
[1729883042708,20.399427,169.61,169.52,2.9537]
[1729883042903,1.1985,169.59,169.52,2.9537]
[1729883043108,2.953,169.57,169.46,20.399427]
[1729883043311,2.953,169.57,169.52,2.9537]
[1729883043510,1.1985,169.59,169.46,20.399427]
[1729883043902,1.1985,169.59,169.53,2.9534]
[1729883044316,1.1985,169.59,169.49,20.399427]
[1729883044914,1.1985,169.59,169.55,2.9532]
[1729883045214,1.1985,169.59,169.51,7.6]
[1729883045520,2.9524,169.6,169.56,2.9529]
[1729883047215,4.2436,169.61,169.57,2.9528]
[1729883047423,1.2874,169.62,169.52,20.399427]
[1729883047923,2.9525,169.6,169.55,2.9531]
[1729883048216,1.2874,169.62,169.52,20.399427]
[1729883048405,2.9526,169.59,169.55,2.9532]
[1729883049117,2.953,169.57,169.53,2.9534]
[1729883049311,21.686827,169.62,169.51,7.6]
[1729883049509,21.686827,169.62,169.49,7.6]
[1729883049713,20.399427,169.59,169.46,20.399427]
[1729883049917,1.2874,169.62,169.46,20.399427]
[1729883049918,20.399427,169.56,169.46,7.6]
[1729883050217,20.399427,169.56,169.45,63.7]
[1729883050218,2.5105,169.55,169.45,63.7]
[1729883050414,3.7564,169.55,169.45,63.7]
[1729883050613,20.399427,169.54,169.45,63.7]
[1729883050811,2.9542,169.5,169.38,23.40037953]
[1729883051012,20.399427,169.51,169.35,63.74]
[1729883051209,20.399427,169.48,169.39,219.95451476]
[1729883051518,2.9549,169.46,169.41,2.9556]
[1729883052017,20.399427,169.51,169.39,219.95451476]
[1729883052214,20.399427,169.54,169.39,240.35394176]
[1729883052611,2.954,169.51,169.39,240.35394176]
[1729883053006,3.7564,169.55,169.42,20.399427]
[1729883053407,3.7564,169.55,169.45,20.399427]
[1729883053619,3.7564,169.55,169.46,7.6]
[1729883053823,6.7097,169.55,169.49,2.9541]
[1729883054112,3.7564,169.55,169.46,7.6]
[1729883054317,2.5105,169.55,169.53,2.9536]
[1729883054715,2.5105,169.55,169.46,7.6]
[1729883054912,2.5105,169.55,169.52,2.9537]
[1729883055112,2.5105,169.55,169.46,7.6]
[1729883055616,2.5105,169.55,169.48,2.9543]
[1729883055824,2.5105,169.55,169.46,7.6]
[1729883056137,2.9537,169.52,169.46,7.6]
[1729883056417,33.18590667,169.5,169.43,7.6]
[1729883056624,36.14020667,169.5,169.44,2.9551]
[1729883056812,33.18590667,169.5,169.44,2.9551]
[1729883057015,33.18590667,169.5,169.4,7.6]
[1729883057228,2.9546,169.48,169.42,2.9555]
[1729883057416,33.18590667,169.5,169.4,7.6]
[1729883057932,2.9549,169.48,169.42,2.9558]
[1729883058334,33.18590667,169.5,169.4,7.6]
[1729883058532,33.18590667,169.5,169.43,2.9556]
[1729883058732,33.18590667,169.5,169.4,7.6]
[1729883059834,2.9546,169.49,169.43,2.9555]
[1729883060035,1.28,169.51,169.4,7.6]
[1729883060240,1.28,169.51,169.47,2.9548]
[1729883062444,2.9546,169.49,169.44,2.9553]
[1729883062642,33.18590667,169.49,169.36,33.18590667]
[1729883062837,33.18590667,169.49,169.29,5.9154]
[1729883062838,33.18590667,169.47,169.37,7.6]
[1729883063141,1.245,169.46,169.43,2.9556]
[1729883063801,1.245,169.46,169.35,63.74]
[1729883063951,1.245,169.46,169.41,2.9559]
[1729883064151,2.9556,169.44,169.35,63.74]
[1729883064348,2.9556,169.44,169.23,11.8351]
[1729883064349,33.18590667,169.44,169.3,33.18590667]
[1729883064550,33.18590667,169.41,169.36,2.9569]
[1729883065534,36.14200667,169.41,169.36,2.9569]
[1729883065943,36.14200667,169.41,169.31,7.6]
[1729883066250,2.9568,169.38,169.27,33.18590667]
[1729883066579,33.18590667,169.36,169.27,2.9586]
[1729883066745,33.18590667,169.36,169.23,7.62]
[1729883066746,1.1905,169.35,169.23,7.62]
[1729883067044,2.9575,169.34,169.23,7.62]
[1729883067243,1.1905,169.35,169.28,2.9584]
[1729883067446,33.18590667,169.33,169.2,33.18590667]
[1729883067749,33.18590667,169.31,169.23,2.9593]
[1729883067949,33.18590667,169.31,169.2,7.62]
[1729883068133,33.18590667,169.31,169.18,33.18590667]
[1729883068325,33.18590667,169.31,169.19,7.62]
[1729883068637,36.14390667,169.31,169.19,7.62]
[1729883069217,33.18590667,169.31,169.25,2.959]
[1729883069422,33.18590667,169.31,169.19,7.62]
[1729883069626,1.1905,169.35,169.2,33.18590667]
[1729883069627,33.18590667,169.33,169.2,33.18590667]
[1729883070027,33.18590667,169.33,169.27,2.9585]
[1729883070528,33.18590667,169.3,169.18,7.62]
[1729883070731,1.1919,169.29,169.18,7.62]
[1729883071335,33.18590667,169.27,169.13,33.18590667]
[1729883072020,1.1919,169.29,169.16,33.18590667]
[1729883072224,1.1919,169.29,169.17,7.58]
[1729883072829,4.1504,169.29,169.22,2.9595]
[1729883073435,33.18590667,169.25,169.14,7.58]
[1729883073639,33.18590667,169.25,169.13,0.8562]
[1729883073841,2.9594,169.24,169.17,2.9603]
[1729883074332,2.9595,169.23,169.17,2.9603]
[1729883074530,33.18590667,169.25,169.17,2.9603]
[1729883074829,33.18590667,169.25,169.13,7.58]
[1729883075736,2.5348,169.24,169.13,7.58]
[1729883076238,2.9596,169.22,169.16,2.9604]
[1729883076431,36.14550667,169.22,169.16,2.9604]
[1729883077040,33.18590667,169.22,169.13,7.58]
[1729883077339,33.18590667,169.22,169.11,7.58]
[1729883077736,36.14560667,169.22,169.15,2.9606]
[1729883077934,33.18590667,169.22,169.11,7.58]
[1729883078135,33.18590667,169.22,169.12,2.9619]
[1729883078136,36.14690667,169.19,169.12,2.9619]
[1729883078328,33.18590667,169.19,169.06,40.76590667]
[1729883078529,33.18590667,169.17,169.05,71.38]
[1729883078739,7.58,169.2,168.94,63.86]
[1729883078740,33.18590667,169.11,168.94,63.86]
[1729883078937,2.4631,169.1,168.97,7.58]
[1729883079150,2.4631,169.1,168.97,33.18590667]
[1729883079435,2.4631,169.1,168.85,5.9339]
[1729883079436,33.18590667,169.07,168.93,2.95707938]
[1729883079637,33.18590667,169.07,168.94,40.76590667]
[1729883079834,33.18590667,169.09,168.95,7.58]
[1729883080033,33.18590667,169.09,168.95,1.1963]
[1729883080237,33.18590667,169.09,168.97,33.18590667]
[1729883080429,33.18590667,169.15,169.0,33.18590667]
[1729883080834,33.18590667,169.15,169.08,2.963]
[1729883081035,33.18590667,169.12,169.02,7.58]
[1729883081538,33.18590667,169.12,168.95,2.0522]
[1729883081539,33.18590667,169.06,168.95,1.1963]
[1729883081734,33.18590667,169.15,168.73,63.88]
[1729883081735,33.18590667,168.97,168.73,63.88]
[1729883081937,33.18590667,168.97,168.81,1.5387]
[1729883082138,33.18590667,168.97,168.82,43.79723865]
[1729883082331,1.2654,168.96,168.82,43.79723865]
[1729883082533,33.18590667,168.94,168.83,7.6]
[1729883082763,2.4557,168.96,168.83,7.6]
[1729883082929,2.4557,168.96,168.92,2.9657]
[1729883083136,2.4557,168.96,168.84,7.6]
[1729883083441,2.4557,168.96,168.85,33.18590667]
[1729883083639,2.4557,168.96,168.93,2.9656]
[1729883084137,2.4557,168.96,168.91,2.966]
[1729883084437,33.18590667,169.0,168.87,33.18590667]
[1729883085038,33.18590667,168.94,168.84,7.6]
[1729883085346,33.18590667,168.94,168.89,2.9662]
[1729883085640,33.18590667,168.94,168.81,9.1387]
[1729883086040,33.18590667,168.97,168.82,33.18590667]
[1729883086242,33.18590667,168.97,168.93,2.9651]
[1729883086544,33.18590667,169.0,168.87,7.6]
[1729883086741,35.72800667,169.03,168.96,2.9646]
[1729883086937,35.72800667,169.03,168.88,33.18590667]
[1729883087138,2.5421,169.03,168.91,33.18590667]
[1729883087339,1.2469,169.03,168.92,3.18291]
[1729883087541,1.2469,169.03,168.93,7.6]
[1729883087841,1.2469,169.03,168.96,2.9646]
[1729883088045,1.2469,169.03,168.93,10.63001497]
[1729883088339,34.43280667,169.03,168.93,7.6]
[1729883089035,34.43280667,169.03,168.97,2.9643]
[1729883089233,34.43280667,169.03,168.92,0.2561]
[1729883089443,33.18590667,169.0,168.91,7.6]
[1729883089639,33.18590667,169.0,168.93,2.9649]
[1729883090040,36.14970667,169.0,168.91,2.9652]
[1729883090257,36.14970667,169.0,168.89,7.6]
[1729883090258,38.68550667,169.0,168.89,7.6]
[1729883090544,2.964,168.99,168.91,2.9654]
[1729883090743,35.72170667,169.0,168.89,7.6]
[1729883091142,33.18590667,168.98,168.92,2.9652]
[1729883091335,33.18590667,168.98,168.89,7.6]
[1729883091645,33.18590667,168.98,168.89,2.9657]
[1729883091852,33.18590667,168.98,168.87,7.6]
[1729883092235,33.18590667,168.98,168.82,0.8565]
[1729883092236,33.18590667,168.92,168.66,5.9395]
[1729883092548,2.5411,168.91,168.79,33.18590667]
[1729883092755,2.5411,168.91,168.79,43.79415471]
[1729883092941,2.5411,168.91,168.82,2.9669]
[1729883093159,2.5411,168.91,168.53,166.97963034]
[1729883093346,2.5411,168.91,168.1,159.58121544]
[1729883093347,33.18590667,168.51,168.11,11.2]
[1729883093540,2.9771,168.25,168.12,8.1792]
[1729883093843,2.9771,168.25,168.1,33.18590667]
[1729883093844,33.18590667,168.26,168.13,75.24]
[1729883094048,2.9774,168.23,168.13,75.24]
[1729883094351,3.0242683,168.43,167.96,252.02913805]
[1729883094352,17.74,168.37,167.96,252.02913805]
[1729883094544,20.66340002,168.37,167.97,64.02]
[1729883094743,1.0,168.22,167.96,252.0359615]
[1729883094936,1.0,168.22,167.97,76.22]
[1729883095135,1.0,168.22,168.06,33.18590667]
[1729883095341,33.18590667,168.19,168.03,33.18590667]
[1729883095647,34.18590667,168.22,168.06,33.18590667]
[1729883095851,34.18590667,168.22,168.08,2.98]
[1729883096049,1.0,168.22,168.07,12.2]
[1729883096245,1.0,168.22,168.11,33.18590667]
[1729883096947,34.18590667,168.22,167.87,33.43960667]
[1729883097241,34.18590667,168.22,168.07,33.18590667]
[1729883097495,1.0,168.22,168.08,12.64]
[1729883097645,1.0,168.22,168.09,2.9797]
[1729883097842,1.0,168.22,168.1,97.28590667]
[1729883098248,1.0,168.22,168.13,33.18590667]
[1729883098638,1.0,168.22,168.13,12.64]
[1729883098946,1.0,168.22,168.12,33.18590667]
[1729883099443,1.0,168.22,168.15,33.18590667]
[1729883099750,33.18590667,168.38,168.2,33.18590667]
[1729883099946,33.18590667,168.38,168.27,2.9766]
[1729883100260,2.9992623,168.45,168.14,1.3124]
[1729883100450,33.18590667,168.41,168.32,2.9756]
[1729883100754,33.18590667,168.41,168.21,33.18590667]
[1729883100755,33.18590667,168.43,168.33,12.66]
[1729883100943,33.18590667,168.43,168.34,12.66]
[1729883101142,33.18590667,168.41,168.29,64.16]
[1729883101348,33.18590667,168.35,168.23,12.66]
[1729883101545,33.18590667,168.35,168.23,15.6374]
[1729883101745,33.18590667,168.35,168.23,12.66]
[1729883102249,33.18590667,168.38,168.24,33.18590667]
[1729883102438,33.18590667,168.41,168.27,33.18590667]
[1729883102638,33.18590667,168.56,168.15,1.2479]
[1729883102843,3.04582444,168.59,168.15,1.2479]
[1729883102844,3.04582444,168.59,168.29,33.18590667]
[1729883103045,33.18590667,168.46,168.32,33.18590667]
[1729883103240,1.0,168.55,168.33,46.66590667]
[1729883103544,33.18590667,168.49,168.35,33.18590667]
[1729883103750,33.18590667,168.51,168.35,33.18590667]
[1729883104344,33.18590667,168.45,168.36,13.48]
[1729883104746,33.18590667,168.49,168.42,2.9742]
[1729883104950,33.18590667,168.49,168.36,13.48]
[1729883105848,33.18590667,168.52,168.36,13.48]
[1729883106048,33.18590667,168.46,168.29,33.18590667]
[1729883106250,33.18590667,168.37,168.3,78.08]
[1729883106650,33.18590667,168.32,168.13,1.2872]
[1729883106863,33.18590667,168.32,168.18,33.18590667]
[1729883107052,33.18590667,168.32,168.27,2.9769]
[1729883107256,33.18590667,168.32,168.18,33.18590667]
[1729883107449,33.18590667,168.39,168.18,33.18590667]
[1729883107761,32.62,168.51,168.21,33.18590667]
[1729883107762,1.0,168.51,168.21,33.18590667]
[1729883108054,1.0,168.51,168.24,33.18590667]
[1729883108055,33.18590667,168.4,168.24,33.18590667]
[1729883108252,33.18590667,168.4,168.25,64.18]
[1729883108455,33.18590667,168.37,168.25,64.18]
[1729883108652,33.18590667,168.34,168.26,2.9769]
[1729883108957,33.18590667,168.37,168.25,64.18]
[1729883109142,33.18590667,168.37,168.29,2.9764]
[1729883109343,33.18590667,168.37,168.25,64.18]
[1729883110546,33.18590667,168.4,168.26,33.18590667]
[1729883110751,33.18590667,168.47,168.29,33.18590667]
[1729883110950,33.18590667,168.47,168.32,33.18590667]
[1729883111151,33.18590667,168.47,168.35,33.18590667]
[1729883111348,179.53005657,168.5,168.44,2.9732]
[1729883111556,179.53005657,168.5,168.43,64.18]
[1729883111856,179.53005657,168.5,168.43,97.36590667]
[1729883112053,33.18590667,168.59,168.43,97.36590667]
[1729883112252,33.18590667,168.59,168.46,33.18590667]
[1729883112953,33.18590667,168.61,168.53,2.9716]
[1729883113158,33.18590667,168.61,168.46,33.18590667]
[1729883113358,33.18590667,168.61,168.49,33.18590667]
[1729883113557,33.18590667,168.58,168.43,97.36590667]
[1729883113856,33.18590667,168.51,168.44,64.18]
[1729883114160,33.18590667,168.55,168.44,64.18]
[1729883114766,33.18590667,168.59,168.44,64.18]
[1729883114958,33.18590667,168.59,168.45,33.18590667]
[1729883115155,179.39820169,168.61,168.45,33.18590667]
[1729883115363,33.18590667,168.59,168.45,33.18590667]
[1729883115648,33.18590667,168.54,168.44,64.18]
[1729883116046,33.18590667,168.57,168.44,97.36590667]
[1729883116358,179.39820169,168.61,168.44,97.36590667]
[1729883116556,179.39820169,168.61,168.47,33.18590667]
[1729883116950,179.39820169,168.61,168.56,2.971]
[1729883117153,179.39820169,168.61,168.47,33.18590667]
[1729883117351,212.58410836,168.61,168.47,33.18590667]
[1729883117653,212.58410836,168.61,168.56,2.9709]
[1729883118049,33.18590667,168.65,168.57,64.16]
[1729883119047,33.18590667,168.59,168.57,64.16]
[1729883119449,33.18590667,168.59,168.5,64.16]
[1729883120050,33.18590667,168.62,168.5,64.16]
[1729883120255,33.18590667,168.62,168.56,2.9707]
[1729883120952,33.18590667,168.59,168.51,2.9715]
[1729883121256,33.18590667,168.62,168.5,64.16]
[1729883121257,33.18590667,168.54,168.5,64.16]
[1729883121452,33.18590667,168.56,168.5,64.16]
[1729883124055,33.18590667,168.62,168.5,64.16]
[1729883124263,33.18590667,168.51,168.43,64.16]
[1729883124458,33.18590667,168.54,168.46,2.9725]
[1729883124762,33.18590667,168.54,168.43,64.16]
[1729883124952,33.18590667,168.57,168.51,2.9717]
[1729883125154,179.3948712,168.6,168.43,97.34590667]
[1729883125355,33.18590667,168.57,168.43,97.34590667]
[1729883125552,33.18590667,168.57,168.48,2.9721]
[1729883125755,33.18590667,168.57,168.43,64.16]
[1729883125953,33.18590667,168.54,168.43,64.16]
[1729883126165,33.18590667,168.54,168.44,2.9728]
[1729883126961,33.18590667,168.54,168.45,2.9727]
[1729883127663,33.18590667,168.54,168.43,64.16]
[1729883127862,33.18590667,168.57,168.43,64.16]
[1729883128160,33.18590667,168.55,168.43,64.16]
[1729883128355,33.18590667,168.52,168.43,64.16]
[1729883128857,33.18590667,168.56,168.43,64.16]
[1729883129057,33.18590667,168.56,168.47,2.9723]
[1729883129656,33.18590667,168.58,168.48,2.9721]
[1729883129855,33.18590667,168.58,168.43,97.34590667]
[1729883130179,33.18590667,168.58,168.48,2.9722]
[1729883130469,33.18590667,168.58,168.43,97.34590667]
[1729883131055,33.18590667,168.56,168.43,64.16]
[1729883131254,33.18590667,168.53,168.44,2.9732]
[1729883131462,179.3948712,168.6,168.43,64.16]
[1729883131463,33.18590667,168.5,168.43,64.16]
[1729883131859,33.18590667,168.47,168.43,64.16]
[1729883132662,1.0,168.55,168.17,5.926]
[1729883132663,33.18590667,168.44,168.33,65.471]
[1729883132967,33.18590667,168.44,168.35,2.9747]
[1729883133270,33.18590667,168.44,168.33,64.16]
[1729883133775,33.18590667,168.47,168.33,64.16]
[1729883134356,33.18590667,168.42,168.33,64.16]
[1729883135564,33.18590667,168.45,168.33,64.16]
[1729883136166,33.18590667,168.45,168.26,5.53643534]
[1729883136167,33.18590667,168.39,168.3,2.9757]
[1729883136362,33.18590667,168.39,168.26,2.5117]
[1729883136764,33.18590667,168.39,168.33,2.9752]
[1729883137273,33.18590667,168.39,168.26,2.5117]
[1729883137477,33.18590667,168.39,168.32,2.9753]
[1729883137864,33.18590667,168.39,168.29,2.9758]
[1729883138163,33.18590667,168.36,168.26,2.5117]
[1729883138364,33.18590667,168.3,168.26,1.2113]
[1729883138562,33.18590667,168.33,168.26,1.2113]
[1729883138960,1.0,168.38,168.26,1.2113]
[1729883138961,33.18590667,168.35,168.26,1.2113]
[1729883139165,33.18590667,168.32,168.26,1.2113]
[1729883139370,33.18590667,168.35,168.26,1.2113]
[1729883139564,34.18590667,168.38,168.26,1.2113]
[1729883139964,33.18590667,168.34,168.26,1.2113]
[1729883140266,33.18590667,168.37,168.26,1.2113]
[1729883140468,53.89159872,168.56,168.31,2.9754]
[1729883140670,33.18590667,168.4,168.31,2.9754]
[1729883141269,33.18590667,168.4,168.26,1.2113]
[1729883141573,33.18590667,168.4,168.32,2.9753]
[1729883141871,33.18590667,168.4,168.33,2.9751]
[1729883142074,33.18590667,168.43,168.28,33.18590667]
[1729883142367,1.0,168.54,168.37,2.9744]
[1729883142572,33.18590667,168.46,168.34,64.2]
[1729883143660,33.18590667,168.49,168.34,64.2]
[1729883143899,33.18590667,168.52,168.36,33.18590667]
[1729883144262,33.18590667,168.52,168.39,33.18590667]
[1729883145266,1.0,168.54,168.39,33.18590667]
[1729883145469,33.18590667,168.55,168.42,33.18590667]
[1729883145666,33.18590667,168.55,168.4,1.2293]
[1729883145872,33.18590667,168.55,168.42,33.18590667]
[1729883146071,33.18590667,168.57,168.42,33.18590667]
[1729883146668,212.58077787,168.6,168.45,33.18590667]
[1729883146868,212.58077787,168.6,168.51,2.9718]
[1729883147468,212.58077787,168.6,168.47,64.18]
[1729883147469,212.58077787,168.6,168.52,2.9717]
[1729883147694,212.58077787,168.6,168.47,64.18]
[1729883147695,179.3948712,168.6,168.48,33.18590667]
[1729883148072,33.18590667,168.57,168.5,2.972]
[1729883148272,33.18590667,168.57,168.47,64.18]
[1729883148678,33.18590667,168.57,168.5,2.972]
[1729883148879,33.18590667,168.57,168.47,64.18]
[1729883149083,33.18590667,168.57,168.51,14.38]
[1729883149777,33.18590667,168.57,168.51,17.3517]
[1729883150578,33.18590667,168.57,168.51,14.38]
[1729883150779,33.18590667,168.59,168.51,14.38]
[1729883151181,33.18590667,168.54,168.48,14.38]
[1729883151780,1.0,168.58,168.48,14.38]
[1729883152797,1.0,168.58,168.51,2.9719]
[1729883152995,1.0,168.58,168.48,14.38]